[Event "*** SCC Grand Prix: Titled Tuesday Blitz"]
[Site "Chess.com"]
[Date "2020.08.04"]
[Round "4"]
[White "Sanyura"]
[Black "bascheyaro"]
[Result "0-1"]
[WhiteElo "2406"]
[BlackElo "2708"]
[TimeControl "180+1"]
[EndTime "14:22:46 PDT"]
[Termination "bascheyaro won by resignation"]

1. Nf3 {[%clk 0:03:00.9]} 1... d5 {[%clk 0:02:59.7]} 2. g3 {[%clk 0:03:01]} 2...
Nf6 {[%clk 0:03:00.1]} 3. d3 {[%clk 0:03:01.6]} 3... Bf5 {[%clk 0:03:00.5]} 4.
Bg2 {[%clk 0:03:02.1]} 4... e6 {[%clk 0:03:01.1]} 5. O-O {[%clk 0:03:02.8]} 5...
Be7 {[%clk 0:03:01.6]} 6. b3 {[%clk 0:03:03.2]} 6... O-O {[%clk 0:03:01.5]} 7.
Bb2 {[%clk 0:03:03.8]} 7... h6 {[%clk 0:03:02]} 8. Ne5 {[%clk 0:03:02.1]} 8...
Nbd7 {[%clk 0:03:01.3]} 9. Nxd7 {[%clk 0:03:01.6]} 9... Qxd7 {[%clk 0:03:01.5]}
10. Nd2 {[%clk 0:03:02.3]} 10... Rad8 {[%clk 0:03:01]} 11. a4 {[%clk 0:03:02.2]}
11... c5 {[%clk 0:02:53.2]} 12. Nf3 {[%clk 0:03:02.1]} 12... Qc7 {[%clk
0:02:48.5]} 13. Re1 {[%clk 0:03:01.8]} 13... d4 {[%clk 0:02:46.6]} 14. e4 {[%clk
0:03:00.5]} 14... dxe3 {[%clk 0:02:46.6]} 15. fxe3 {[%clk 0:03:00.9]} 15... Bg4
{[%clk 0:02:43.3]} 16. Qc1 {[%clk 0:02:50.7]} 16... Bh5 {[%clk 0:02:32.9]} 17.
Ne5 {[%clk 0:02:47.4]} 17... Nd7 {[%clk 0:02:31.4]} 18. Nxd7 {[%clk 0:02:43.5]}
18... Rxd7 {[%clk 0:02:32.3]} 19. e4 {[%clk 0:02:43.7]} 19... Bg5 {[%clk
0:02:25.9]} 20. Qb1 {[%clk 0:02:38.5]} 20... Bd2 {[%clk 0:02:17.6]} 21. Rf1
{[%clk 0:02:37.7]} 21... Be2 {[%clk 0:02:16.5]} 22. Rf2 {[%clk 0:02:26.4]} 22...
Be3 {[%clk 0:02:16.4]} 23. Qe1 {[%clk 0:02:20.6]} 23... Bxf2+ {[%clk 0:02:16.4]}
24. Qxf2 {[%clk 0:02:13.4]} 24... Bh5 {[%clk 0:02:16.9]} 25. Rf1 {[%clk
0:02:12.2]} 25... Bg6 {[%clk 0:02:08.6]} 26. Bh3 {[%clk 0:02:11.5]} 26... Re7
{[%clk 0:02:05.3]} 27. Qe1 {[%clk 0:01:53.9]} 27... b6 {[%clk 0:02:02.9]} 28.
Bg2 {[%clk 0:01:43]} 28... e5 {[%clk 0:02:02.8]} 29. Bc1 {[%clk 0:01:32.5]}
29... a6 {[%clk 0:02:00]} 30. h4 {[%clk 0:01:31.3]} 30... f5 {[%clk 0:01:43.6]}
31. h5 {[%clk 0:01:19.6]} 31... Bh7 {[%clk 0:01:39.8]} 32. exf5 {[%clk
0:01:15.5]} 32... Rxf5 {[%clk 0:01:39.6]} 33. Bd5+ {[%clk 0:01:15.9]} 33... Kh8
{[%clk 0:01:39.4]} 34. Rxf5 {[%clk 0:01:05.2]} 34... Bxf5 {[%clk 0:01:40.3]} 35.
Qf2 {[%clk 0:01:05.6]} 35... Qd7 {[%clk 0:01:40.1]} 36. c4 {[%clk 0:01:04.9]}
36... Re8 {[%clk 0:01:30]} 37. Bb2 {[%clk 0:00:58.5]} 37... Bxd3 {[%clk
0:01:21.3]} 38. Qe3 {[%clk 0:00:58]} 38... Qf5 {[%clk 0:01:17.8]} 39. Bg2 {[%clk
0:00:34.6]} 39... Bc2 {[%clk 0:01:15.3]} 40. g4 {[%clk 0:00:23.7]} 40... Qf4
{[%clk 0:01:07.5]} 41. Qe2 {[%clk 0:00:17.4]} 41... Bxb3 {[%clk 0:01:07]} 42.
Bc6 {[%clk 0:00:14.9]} 42... Qg3+ {[%clk 0:00:59.9]} 43. Bg2 {[%clk 0:00:13.1]}
43... Rd8 {[%clk 0:00:43.6]} 44. Bxe5 {[%clk 0:00:12.8]} 44... Rd1+ {[%clk
0:00:43.5]} 45. Qxd1 {[%clk 0:00:13.4]} 45... Qe3+ {[%clk 0:00:44.1]} 0-1

[Event "*** SCC Grand Prix: Titled Tuesday Blitz"]
[Site "Chess.com"]
[Date "2020.08.04"]
[Round "4"]
[White "Tactictic"]
[Black "SiddharthGMJagadeesh"]
[Result "0-1"]
[WhiteElo "2385"]
[BlackElo "2585"]
[TimeControl "180+1"]
[EndTime "14:22:46 PDT"]
[Termination "SiddharthGMJagadeesh won by resignation"]

1. e4 {[%clk 0:03:00.9]} 1... d6 {[%clk 0:03:00.2]} 2. d4 {[%clk 0:03:00.7]}
2... Nf6 {[%clk 0:03:00.6]} 3. Nc3 {[%clk 0:02:59.6]} 3... e5 {[%clk 0:03:00.6]}
4. Nf3 {[%clk 0:02:57]} 4... exd4 {[%clk 0:03:00.2]} 5. Nxd4 {[%clk 0:02:56.6]}
5... Be7 {[%clk 0:03:00.8]} 6. Be2 {[%clk 0:02:56.5]} 6... O-O {[%clk
0:03:01.3]} 7. O-O {[%clk 0:02:57.1]} 7... Re8 {[%clk 0:03:00.8]} 8. Be3 {[%clk
0:02:57.2]} 8... Bf8 {[%clk 0:03:00.2]} 9. f3 {[%clk 0:02:57]} 9... h6 {[%clk
0:02:56.2]} 10. Re1 {[%clk 0:02:42.8]} 10... c6 {[%clk 0:02:53]} 11. Bf1 {[%clk
0:02:39.4]} 11... Nbd7 {[%clk 0:02:34.5]} 12. Bf2 {[%clk 0:02:37.2]} 12... Ne5
{[%clk 0:02:30.2]} 13. h3 {[%clk 0:02:31.8]} 13... Ng6 {[%clk 0:02:21.2]} 14.
Qd2 {[%clk 0:02:26.8]} 14... Bd7 {[%clk 0:02:13.6]} 15. Rad1 {[%clk 0:02:24.6]}
15... Qc7 {[%clk 0:02:13.5]} 16. f4 {[%clk 0:02:22.4]} 16... Rad8 {[%clk
0:02:12.8]} 17. g3 {[%clk 0:02:20]} 17... a6 {[%clk 0:02:06.3]} 18. Bg2 {[%clk
0:02:19.5]} 18... c5 {[%clk 0:01:52.4]} 19. Nb3 {[%clk 0:02:00.6]} 19... Bc6
{[%clk 0:01:45.5]} 20. Nd5 {[%clk 0:01:57.1]} 20... Bxd5 {[%clk 0:01:34.6]} 21.
exd5 {[%clk 0:01:58]} 21... Ne7 {[%clk 0:01:24]} 22. c4 {[%clk 0:01:54.2]} 22...
b5 {[%clk 0:01:20.5]} 23. cxb5 {[%clk 0:01:49.9]} 23... axb5 {[%clk 0:01:21.4]}
24. Na5 {[%clk 0:01:49.7]} 24... Nexd5 {[%clk 0:01:16.3]} 25. Bxd5 {[%clk
0:01:22.3]} 25... Nxd5 {[%clk 0:01:15.4]} 26. Qxd5 {[%clk 0:01:22.9]} 26... Qxa5
{[%clk 0:01:14.1]} 27. f5 {[%clk 0:01:16.5]} 27... Qa8 {[%clk 0:01:06]} 28. Qb3
{[%clk 0:01:12.1]} 28... Qc6 {[%clk 0:00:43.5]} 29. g4 {[%clk 0:00:53.1]} 29...
Rxe1+ {[%clk 0:00:42.5]} 30. Rxe1 {[%clk 0:00:51.7]} 30... d5 {[%clk 0:00:43.4]}
31. Qc2 {[%clk 0:00:41.4]} 31... c4 {[%clk 0:00:40.1]} 32. Bd4 {[%clk
0:00:38.2]} 32... Bc5 {[%clk 0:00:38.7]} 33. Qf2 {[%clk 0:00:38.6]} 33... Bxd4
{[%clk 0:00:38]} 34. Qxd4 {[%clk 0:00:39.5]} 34... Qf6 {[%clk 0:00:37.3]} 35.
Qxf6 {[%clk 0:00:39]} 35... gxf6 {[%clk 0:00:38.2]} 36. Kf2 {[%clk 0:00:37.3]}
36... d4 {[%clk 0:00:38.6]} 37. Rd1 {[%clk 0:00:35.6]} 37... d3 {[%clk
0:00:35.7]} 38. Ke3 {[%clk 0:00:33.5]} 38... b4 {[%clk 0:00:29.5]} 39. Kd2
{[%clk 0:00:28.6]} 39... Re8 {[%clk 0:00:25.1]} 40. Re1 {[%clk 0:00:21.7]} 40...
c3+ {[%clk 0:00:24.9]} 41. bxc3 {[%clk 0:00:18.2]} 41... bxc3+ {[%clk
0:00:25.8]} 42. Kd1 {[%clk 0:00:18.5]} 42... c2+ {[%clk 0:00:25.1]} 0-1

[Event "*** SCC Grand Prix: Titled Tuesday Blitz"]
[Site "Chess.com"]
[Date "2020.08.04"]
[Round "4"]
[White "Dr-Bassem"]
[Black "Machidon"]
[Result "1-0"]
[WhiteElo "2786"]
[BlackElo "2511"]
[TimeControl "180+1"]
[EndTime "14:22:52 PDT"]
[Termination "Dr-Bassem won on time"]

1. e4 {[%clk 0:03:00.9]} 1... c6 {[%clk 0:03:00.1]} 2. d4 {[%clk 0:02:59.7]}
2... d5 {[%clk 0:03:01]} 3. exd5 {[%clk 0:03:00.4]} 3... cxd5 {[%clk 0:03:01.3]}
4. c4 {[%clk 0:03:01.3]} 4... Nf6 {[%clk 0:03:01.8]} 5. Nc3 {[%clk 0:03:02.2]}
5... e6 {[%clk 0:03:02.2]} 6. Nf3 {[%clk 0:03:01.5]} 6... Be7 {[%clk 0:03:02.6]}
7. cxd5 {[%clk 0:03:00.7]} 7... Nxd5 {[%clk 0:03:02.6]} 8. Bd3 {[%clk 0:03:01]}
8... O-O {[%clk 0:03:02.8]} 9. O-O {[%clk 0:03:01.2]} 9... Nc6 {[%clk
0:03:03.3]} 10. Re1 {[%clk 0:03:01.7]} 10... Bf6 {[%clk 0:02:56.7]} 11. Be4
{[%clk 0:03:01.6]} 11... Nce7 {[%clk 0:02:46.7]} 12. Qd3 {[%clk 0:03:02.1]}
12... Ng6 {[%clk 0:02:46.4]} 13. Bd2 {[%clk 0:02:20.1]} 13... b6 {[%clk
0:02:42.1]} 14. Bxd5 {[%clk 0:02:09.1]} 14... exd5 {[%clk 0:02:43]} 15. Ne5
{[%clk 0:02:09.4]} 15... Bb7 {[%clk 0:02:19.4]} 16. Re2 {[%clk 0:01:22.5]} 16...
Bxe5 {[%clk 0:02:16.8]} 17. dxe5 {[%clk 0:01:21.4]} 17... d4 {[%clk 0:02:17.7]}
18. Nb5 {[%clk 0:01:10.8]} 18... Qd5 {[%clk 0:02:17.7]} 19. f4 {[%clk
0:01:11.1]} 19... Ba6 {[%clk 0:02:10.5]} 20. a4 {[%clk 0:01:10.4]} 20... f6
{[%clk 0:02:06.5]} 21. e6 {[%clk 0:00:53.9]} 21... Ne7 {[%clk 0:01:52]} 22. Bb4
{[%clk 0:00:48]} 22... Rfe8 {[%clk 0:01:47.4]} 23. Bxe7 {[%clk 0:00:46.4]} 23...
Rxe7 {[%clk 0:01:48.3]} 24. f5 {[%clk 0:00:44.9]} 24... Rc8 {[%clk 0:01:38.1]}
25. Rd1 {[%clk 0:00:44.3]} 25... Rc5 {[%clk 0:01:15]} 26. Qxd4 {[%clk
0:00:40.5]} 26... Qxd4+ {[%clk 0:01:13.3]} 27. Rxd4 {[%clk 0:00:41.4]} 27...
Bxb5 {[%clk 0:01:12.7]} 28. axb5 {[%clk 0:00:40.6]} 28... g6 {[%clk 0:01:11.2]}
29. Rd7 {[%clk 0:00:20.8]} 29... Kf8 {[%clk 0:00:58.8]} 30. Rd8+ {[%clk
0:00:20]} 30... Kg7 {[%clk 0:00:57.5]} 31. Red2 {[%clk 0:00:18.6]} 31... Kh6
{[%clk 0:00:11.4]} 32. R2d7 {[%clk 0:00:18.4]} 32... Rxd7 {[%clk 0:00:11.1]} 33.
exd7 {[%clk 0:00:18.4]} 33... Rd5 {[%clk 0:00:08.5]} 34. fxg6 {[%clk 0:00:18.8]}
1-0

[Event "*** SCC Grand Prix: Titled Tuesday Blitz"]
[Site "Chess.com"]
[Date "2020.08.04"]
[Round "4"]
[White "saisree"]
[Black "DenLaz"]
[Result "0-1"]
[WhiteElo "2415"]
[BlackElo "2713"]
[TimeControl "180+1"]
[EndTime "14:22:53 PDT"]
[Termination "DenLaz won by resignation"]

1. Nf3 {[%clk 0:03:00.9]} 1... d5 {[%clk 0:02:56.5]} 2. e3 {[%clk 0:02:58.7]}
2... Nf6 {[%clk 0:02:56.2]} 3. b3 {[%clk 0:02:58.2]} 3... c6 {[%clk 0:02:56]} 4.
Bb2 {[%clk 0:02:58.4]} 4... Bg4 {[%clk 0:02:56.5]} 5. c4 {[%clk 0:02:56.7]} 5...
Nbd7 {[%clk 0:02:55.9]} 6. Qc2 {[%clk 0:02:54.4]} 6... Bxf3 {[%clk 0:02:49.1]}
7. gxf3 {[%clk 0:02:53.9]} 7... g6 {[%clk 0:02:49.5]} 8. h4 {[%clk 0:02:48.7]}
8... h5 {[%clk 0:02:41.6]} 9. Bd3 {[%clk 0:02:39.2]} 9... Rg8 {[%clk 0:02:27.2]}
10. Nc3 {[%clk 0:02:34.5]} 10... e6 {[%clk 0:02:26.4]} 11. O-O-O {[%clk
0:02:30.2]} 11... Qa5 {[%clk 0:02:26.5]} 12. Kb1 {[%clk 0:02:29.1]} 12... O-O-O
{[%clk 0:02:25.4]} 13. Be2 {[%clk 0:02:22.9]} 13... Kb8 {[%clk 0:02:22.8]} 14.
d4 {[%clk 0:02:22.4]} 14... Ba3 {[%clk 0:02:22.4]} 15. Ba1 {[%clk 0:02:22.1]}
15... Bb4 {[%clk 0:02:16.4]} 16. e4 {[%clk 0:02:04.1]} 16... dxe4 {[%clk
0:02:14.2]} 17. fxe4 {[%clk 0:02:03.9]} 17... e5 {[%clk 0:02:14.7]} 18. d5
{[%clk 0:02:00.9]} 18... cxd5 {[%clk 0:02:12.8]} 19. Nxd5 {[%clk 0:01:58.3]}
19... Nxd5 {[%clk 0:02:08.4]} 20. Rxd5 {[%clk 0:01:56.8]} 20... Qc7 {[%clk
0:02:08.8]} 21. Rhd1 {[%clk 0:01:43.9]} 21... f6 {[%clk 0:02:08.4]} 22. Bb2
{[%clk 0:01:40.3]} 22... Nb6 {[%clk 0:02:07.4]} 23. Rxd8+ {[%clk 0:01:39.6]}
23... Rxd8 {[%clk 0:02:08.3]} 24. a3 {[%clk 0:01:40]} 24... Be7 {[%clk
0:02:07.6]} 25. Rxd8+ {[%clk 0:01:25]} 25... Qxd8 {[%clk 0:02:06.6]} 26. Qd3
{[%clk 0:01:23.2]} 26... Qxd3+ {[%clk 0:02:05.3]} 27. Bxd3 {[%clk 0:01:23.4]}
27... Nd7 {[%clk 0:02:06.2]} 28. b4 {[%clk 0:01:22.4]} 28... Nf8 {[%clk
0:02:06]} 29. Bc1 {[%clk 0:01:17.6]} 29... g5 {[%clk 0:02:05.8]} 30. Be2 {[%clk
0:01:13.2]} 30... gxh4 {[%clk 0:02:03.5]} 31. Bxh5 {[%clk 0:01:13.2]} 31... h3
{[%clk 0:02:03.9]} 32. f4 {[%clk 0:01:07.3]} 32... h2 {[%clk 0:02:01.5]} 33. Bf3
{[%clk 0:01:06.8]} 33... Ne6 {[%clk 0:02:01.5]} 34. f5 {[%clk 0:01:01.4]} 34...
Nd4 {[%clk 0:02:01.5]} 35. Bg2 {[%clk 0:00:52.7]} 35... Ne2 {[%clk 0:02:00.8]}
36. Kc2 {[%clk 0:00:31.3]} 36... Ng3 {[%clk 0:01:59.9]} 37. c5 {[%clk
0:00:28.6]} 37... h1=Q {[%clk 0:01:59.7]} 38. Bxh1 {[%clk 0:00:29.1]} 38... Nxh1
{[%clk 0:02:00.6]} 39. Be3 {[%clk 0:00:28.1]} 39... Ng3 {[%clk 0:02:00.7]} 40.
Kd3 {[%clk 0:00:28.8]} 40... Nh5 {[%clk 0:02:01]} 41. Kc4 {[%clk 0:00:28.4]}
41... Nf4 {[%clk 0:02:01.3]} 42. Bd2 {[%clk 0:00:26.4]} 42... Kc7 {[%clk
0:02:01.4]} 43. Be3 {[%clk 0:00:26.7]} 43... a6 {[%clk 0:02:00]} 44. a4 {[%clk
0:00:26.5]} 44... Ng2 {[%clk 0:01:59.6]} 45. Bd2 {[%clk 0:00:24.9]} 45... Nh4
{[%clk 0:01:59.9]} 46. Kd5 {[%clk 0:00:24.6]} 46... Nf3 {[%clk 0:01:57]} 47. Be3
{[%clk 0:00:21.8]} 47... Nd4 {[%clk 0:01:56.4]} 48. Bxd4 {[%clk 0:00:18.2]}
48... exd4 {[%clk 0:01:57.3]} 49. Kxd4 {[%clk 0:00:18.8]} 49... Kc6 {[%clk
0:01:55]} 50. Kc4 {[%clk 0:00:18.2]} 50... Bd8 {[%clk 0:01:54.9]} 51. b5+ {[%clk
0:00:18.7]} 51... axb5+ {[%clk 0:01:54]} 52. axb5+ {[%clk 0:00:19.6]} 52... Kd7
{[%clk 0:01:54.6]} 53. Kd5 {[%clk 0:00:20]} 53... Bc7 {[%clk 0:01:54.4]} 54. c6+
{[%clk 0:00:15.8]} 54... bxc6+ {[%clk 0:01:55.3]} 55. bxc6+ {[%clk 0:00:16.4]}
55... Kc8 {[%clk 0:01:55.4]} 56. Ke6 {[%clk 0:00:14.9]} 56... Be5 {[%clk
0:01:56.3]} 57. Kd5 {[%clk 0:00:12.5]} 57... Kc7 {[%clk 0:01:56.6]} 58. Kc5
{[%clk 0:00:13.2]} 58... Bf4 {[%clk 0:01:35.1]} 59. Kd5 {[%clk 0:00:12.4]} 59...
Bg3 {[%clk 0:01:35.5]} 60. Kc5 {[%clk 0:00:12.3]} 60... Be5 {[%clk 0:01:35.7]}
61. Kd5 {[%clk 0:00:12.4]} 61... Kb6 {[%clk 0:01:36]} 62. c7 {[%clk 0:00:03.2]}
62... Kxc7 {[%clk 0:01:36.1]} 63. Kc5 {[%clk 0:00:03.8]} 63... Kb7 {[%clk
0:01:36.4]} 64. Kb5 {[%clk 0:00:04]} 64... Kc7 {[%clk 0:01:36.8]} 65. Kc5 {[%clk
0:00:04.5]} 65... Kd7 {[%clk 0:01:37.7]} 66. Kd5 {[%clk 0:00:04.4]} 66... Ke7
{[%clk 0:01:38.6]} 67. Kc4 {[%clk 0:00:05]} 67... Kf7 {[%clk 0:01:39.5]} 68. Kd3
{[%clk 0:00:05.6]} 68... Kg7 {[%clk 0:01:40.4]} 69. Ke3 {[%clk 0:00:06.2]} 69...
Kh6 {[%clk 0:01:41]} 70. Ke2 {[%clk 0:00:05.8]} 70... Kg5 {[%clk 0:01:41.9]} 71.
Kf3 {[%clk 0:00:06.2]} 71... Kh4 {[%clk 0:01:42.6]} 72. Kf2 {[%clk 0:00:05.8]}
72... Kg4 {[%clk 0:01:43.5]} 73. Ke3 {[%clk 0:00:06.4]} 73... Kg3 {[%clk
0:01:43.9]} 74. Ke2 {[%clk 0:00:06.9]} 74... Kf4 {[%clk 0:01:44.8]} 75. Kd3
{[%clk 0:00:07.4]} 75... Kf3 {[%clk 0:01:45.5]} 76. Kc4 {[%clk 0:00:08]} 76...
Kxe4 {[%clk 0:01:46.4]} 0-1

[Event "*** SCC Grand Prix: Titled Tuesday Blitz"]
[Site "Chess.com"]
[Date "2020.08.04"]
[Round "4"]
[White "j_coca"]
[Black "Orest_Vovk"]
[Result "1-0"]
[WhiteElo "2319"]
[BlackElo "2455"]
[TimeControl "180+1"]
[EndTime "14:22:53 PDT"]
[Termination "j_coca won by resignation"]

1. f4 {[%clk 0:03:00.9]} 1... g5 {[%clk 0:02:58.9]} 2. fxg5 {[%clk 0:03:00.6]}
2... h6 {[%clk 0:02:58.8]} 3. gxh6 {[%clk 0:03:00]} 3... Bxh6 {[%clk 0:02:58.9]}
4. d3 {[%clk 0:03:00.3]} 4... Bxc1 {[%clk 0:02:57.9]} 5. Qxc1 {[%clk 0:03:00.3]}
5... Nf6 {[%clk 0:02:58.4]} 6. Nf3 {[%clk 0:02:59.7]} 6... Nc6 {[%clk
0:02:57.9]} 7. Nc3 {[%clk 0:02:59]} 7... d5 {[%clk 0:02:58]} 8. e3 {[%clk
0:02:55.6]} 8... Bg4 {[%clk 0:02:57.9]} 9. Be2 {[%clk 0:02:55.5]} 9... Qd7
{[%clk 0:02:56.5]} 10. Qd2 {[%clk 0:02:54.9]} 10... O-O-O {[%clk 0:02:56.3]} 11.
O-O-O {[%clk 0:02:54.8]} 11... a6 {[%clk 0:02:55.9]} 12. h3 {[%clk 0:02:55]}
12... Be6 {[%clk 0:02:53]} 13. Kb1 {[%clk 0:02:50.6]} 13... d4 {[%clk
0:02:48.8]} 14. exd4 {[%clk 0:02:50.3]} 14... Nxd4 {[%clk 0:02:49]} 15. Nxd4
{[%clk 0:02:50.2]} 15... Qxd4 {[%clk 0:02:49.9]} 16. Bf3 {[%clk 0:02:49.6]}
16... b5 {[%clk 0:02:38.2]} 17. Rde1 {[%clk 0:02:44.6]} 17... b4 {[%clk
0:02:35.1]} 18. Ne4 {[%clk 0:02:44]} 18... Nd5 {[%clk 0:02:31]} 19. Ng5 {[%clk
0:02:40.1]} 19... Nc3+ {[%clk 0:02:14.3]} 20. bxc3 {[%clk 0:02:26.4]} 20... bxc3
{[%clk 0:02:07.7]} 21. Qc1 {[%clk 0:02:26.2]} 21... Bxa2+ {[%clk 0:01:30.4]} 22.
Kxa2 {[%clk 0:02:20.6]} 22... Rd5 {[%clk 0:01:30.5]} 23. Bxd5 {[%clk 0:01:58.5]}
23... Qxd5+ {[%clk 0:01:28.4]} 24. Ka3 {[%clk 0:01:57.5]} 24... Qa5+ {[%clk
0:01:11.6]} 25. Kb3 {[%clk 0:01:56.6]} 25... Kd7 {[%clk 0:00:48.3]} 26. Rxe7+
{[%clk 0:01:44.7]} 26... Kc6 {[%clk 0:00:46.8]} 27. Rxc7+ {[%clk 0:01:30.4]}
27... Qxc7 {[%clk 0:00:41.5]} 28. Qa3 {[%clk 0:01:11.2]} 28... Rb8+ {[%clk
0:00:31.6]} 29. Ka2 {[%clk 0:01:01.1]} 29... Qe5 {[%clk 0:00:16.7]} 30. Rb1
{[%clk 0:00:42.7]} 30... Rxb1 {[%clk 0:00:13.6]} 31. Kxb1 {[%clk 0:00:43.6]}
31... Qxg5 {[%clk 0:00:13.8]} 32. Qxa6+ {[%clk 0:00:43.2]} 32... Kd7 {[%clk
0:00:12.2]} 33. Qb7+ {[%clk 0:00:39.6]} 33... Ke8 {[%clk 0:00:10.4]} 34. Qc8+
{[%clk 0:00:37.9]} 34... Ke7 {[%clk 0:00:10.4]} 35. Qxc3 {[%clk 0:00:38.4]}
35... Qxg2 {[%clk 0:00:10]} 36. Qb4+ {[%clk 0:00:37.2]} 36... Ke8 {[%clk
0:00:08.6]} 37. Qe4+ {[%clk 0:00:37.1]} 37... Qxe4 {[%clk 0:00:07.9]} 38. dxe4
{[%clk 0:00:38]} 38... Ke7 {[%clk 0:00:08.6]} 39. c4 {[%clk 0:00:36.9]} 39...
Ke6 {[%clk 0:00:09.5]} 40. Kc2 {[%clk 0:00:37.4]} 40... Ke5 {[%clk 0:00:09.2]}
41. Kd3 {[%clk 0:00:37.8]} 41... Kf4 {[%clk 0:00:08.9]} 42. c5 {[%clk
0:00:37.8]} 42... Ke5 {[%clk 0:00:09.1]} 43. Ke3 {[%clk 0:00:38.2]} 43... Ke6
{[%clk 0:00:09.2]} 44. Kf4 {[%clk 0:00:37.9]} 44... Kd7 {[%clk 0:00:10.1]} 45.
Kf5 {[%clk 0:00:38.1]} 45... Kc6 {[%clk 0:00:11]} 46. Kf6 {[%clk 0:00:38.4]}
46... Kxc5 {[%clk 0:00:11.9]} 47. e5 {[%clk 0:00:37.9]} 47... Kd5 {[%clk
0:00:11.9]} 48. h4 {[%clk 0:00:38.8]} 48... Ke4 {[%clk 0:00:12.2]} 49. h5 {[%clk
0:00:39.4]} 1-0

[Event "*** SCC Grand Prix: Titled Tuesday Blitz"]
[Site "Chess.com"]
[Date "2020.08.04"]
[Round "4"]
[White "YIYUKI"]
[Black "albano87"]
[Result "1-0"]
[WhiteElo "2310"]
[BlackElo "2462"]
[TimeControl "180+1"]
[EndTime "14:22:56 PDT"]
[Termination "YIYUKI won by resignation"]

1. e4 {[%clk 0:03:00.9]} 1... c5 {[%clk 0:02:59.2]} 2. Nf3 {[%clk 0:03:00]} 2...
Nc6 {[%clk 0:02:59.3]} 3. d3 {[%clk 0:02:58.9]} 3... g6 {[%clk 0:02:58.2]} 4.
Nbd2 {[%clk 0:02:57]} 4... Bg7 {[%clk 0:02:58.4]} 5. g3 {[%clk 0:02:57.5]} 5...
d5 {[%clk 0:02:58.4]} 6. Bg2 {[%clk 0:02:56.1]} 6... Bg4 {[%clk 0:02:56.6]} 7.
h3 {[%clk 0:02:54.3]} 7... Bxf3 {[%clk 0:02:56.3]} 8. Qxf3 {[%clk 0:02:54]} 8...
e6 {[%clk 0:02:50.1]} 9. O-O {[%clk 0:02:53]} 9... Nge7 {[%clk 0:02:49.2]} 10.
Re1 {[%clk 0:02:51.4]} 10... O-O {[%clk 0:02:48.5]} 11. c3 {[%clk 0:02:46.3]}
11... dxe4 {[%clk 0:02:47]} 12. Qxe4 {[%clk 0:02:39.2]} 12... Ne5 {[%clk
0:02:44.2]} 13. Bf1 {[%clk 0:02:25.5]} 13... Qd5 {[%clk 0:02:37.4]} 14. Qxd5
{[%clk 0:02:25.1]} 14... exd5 {[%clk 0:02:36.9]} 15. Nb3 {[%clk 0:02:17.8]}
15... b6 {[%clk 0:02:35]} 16. d4 {[%clk 0:02:17.6]} 16... cxd4 {[%clk
0:02:30.3]} 17. Nxd4 {[%clk 0:02:17.1]} 17... Rfe8 {[%clk 0:02:23.7]} 18. Bg2
{[%clk 0:02:16.4]} 18... Rad8 {[%clk 0:02:18.1]} 19. Bg5 {[%clk 0:02:14.4]}
19... h6 {[%clk 0:02:16]} 20. Bf4 {[%clk 0:02:13.1]} 20... Nc4 {[%clk
0:02:14.8]} 21. b3 {[%clk 0:02:10.2]} 21... Nd6 {[%clk 0:02:09.2]} 22. Rad1
{[%clk 0:02:08.9]} 22... g5 {[%clk 0:01:59.7]} 23. Bxd6 {[%clk 0:01:57.1]} 23...
Rxd6 {[%clk 0:01:58.6]} 24. Nf5 {[%clk 0:01:53.9]} 24... Re6 {[%clk 0:01:58.5]}
25. Nxg7 {[%clk 0:01:44.1]} 25... Kxg7 {[%clk 0:01:54.7]} 26. Kf1 {[%clk
0:01:39]} 26... Kf6 {[%clk 0:01:41.5]} 27. Rd3 {[%clk 0:01:33.2]} 27... Rd8
{[%clk 0:01:36.9]} 28. Red1 {[%clk 0:01:30.9]} 28... Red6 {[%clk 0:01:36.3]} 29.
c4 {[%clk 0:01:26.9]} 29... d4 {[%clk 0:01:35.9]} 30. Re1 {[%clk 0:01:24.9]}
30... Nc6 {[%clk 0:01:32.4]} 31. Bxc6 {[%clk 0:01:24]} 31... Rxc6 {[%clk
0:01:31.4]} 32. Re4 {[%clk 0:01:24.5]} 32... Rcd6 {[%clk 0:01:30]} 33. f4 {[%clk
0:01:24.3]} 33... Kf5 {[%clk 0:01:23.3]} 34. Re5+ {[%clk 0:01:23.5]} 34... Kf6
{[%clk 0:01:22.5]} 35. Re4 {[%clk 0:01:22.9]} 35... Kf5 {[%clk 0:01:21]} 36.
Re5+ {[%clk 0:01:20.3]} 36... Kf6 {[%clk 0:01:20.7]} 37. g4 {[%clk 0:01:20]}
37... Re6 {[%clk 0:01:10.2]} 38. Rd5 {[%clk 0:01:06.7]} 38... Rxd5 {[%clk
0:01:09.8]} 39. cxd5 {[%clk 0:01:06.5]} 39... Re4 {[%clk 0:01:06.3]} 40. fxg5+
{[%clk 0:01:02.8]} 40... hxg5 {[%clk 0:01:06.8]} 41. Rf3+ {[%clk 0:00:59.7]}
41... Rf4 {[%clk 0:00:49.2]} 42. Rxf4+ {[%clk 0:00:59.6]} 42... gxf4 {[%clk
0:00:50.1]} 43. h4 {[%clk 0:01:00]} 43... d3 {[%clk 0:00:37.9]} 44. h5 {[%clk
0:00:59.3]} 44... f3 {[%clk 0:00:29.9]} 45. Ke1 {[%clk 0:00:59]} 45... Ke5
{[%clk 0:00:15.9]} 46. h6 {[%clk 0:00:58.9]} 46... Kd4 {[%clk 0:00:15.5]} 47. h7
{[%clk 0:00:57.7]} 47... Ke3 {[%clk 0:00:15.1]} 48. h8=Q {[%clk 0:00:57]} 1-0